[Event "Titled Tuesday Blitz November 07 Late 2023"]
[White "Jacobson, Brandon"]
[Black "Perske, Thore"]
[WhiteFideId "30901561"]
[BlackFideId "12902195"]
[WhiteElo "3116"]
[BlackElo "2647"]
[Result "1-0"]
[Round "4"]
[TimeControl "180+1"]
[Date "2023.11.07"]
[WhiteClock "0:00:38"]
[BlackClock "0:00:14"]
[Board "24"]

1. Nf3 {[%clk 0:03:00]}  d5 {[%clk 0:02:56]} 2. e3 {[%clk 0:03:01]}  Nf6 {[%clk 0:02:54]} 3. c4 {[%clk 0:03:00]}  c6 {[%clk 0:02:54]} 4. Nc3 {[%clk 0:03:00]}  e6 {[%clk 0:02:53]} 5. b3 {[%clk 0:03:00]}  Bd6 {[%clk 0:02:51]} 6. Bb2 {[%clk 0:03:01]}  O-O {[%clk 0:02:50]} 7. d4 {[%clk 0:03:01]}  Ne4 {[%clk 0:02:42]} 8. Bd3 {[%clk 0:03:00]}  f5 {[%clk 0:02:39]} 9. O-O {[%clk 0:03:00]}  Nd7 {[%clk 0:02:37]} 10. Ne2 {[%clk 0:03:00]}  g5 {[%clk 0:02:24]} 11. Ne5 {[%clk 0:03:01]}  Nxe5 {[%clk 0:02:16]} 12. dxe5 {[%clk 0:03:01]}  Be7 {[%clk 0:02:08]} 13. Qc2 {[%clk 0:02:34]}  Nc5 {[%clk 0:02:04]} 14. Ba3 {[%clk 0:02:18]}  Qa5 {[%clk 0:01:47]} 15. Bxc5 {[%clk 0:02:08]}  Bxc5 {[%clk 0:01:47]} 16. a3 {[%clk 0:02:05]}  Be7 {[%clk 0:01:30]} 17. b4 {[%clk 0:02:00]}  Qc7 {[%clk 0:01:30]} 18. cxd5 {[%clk 0:02:00]}  exd5 {[%clk 0:01:11]} 19. f4 {[%clk 0:02:00]}  gxf4 {[%clk 0:01:04]} 20. exf4 {[%clk 0:01:59]}  c5 {[%clk 0:01:02]} 21. Ng3 {[%clk 0:01:53]}  c4 {[%clk 0:00:50]} 22. Bxf5 {[%clk 0:01:50]}  d4 {[%clk 0:00:43]} 23. Qe4 {[%clk 0:01:44]}  Bxf5 {[%clk 0:00:35]} 24. Nxf5 {[%clk 0:01:44]}  Rad8 {[%clk 0:00:30]} 25. Kh1 {[%clk 0:01:08]}  Qd7 {[%clk 0:00:20]} 26. e6 {[%clk 0:00:59]}  Qc7 {[%clk 0:00:20]} 27. Nxd4 {[%clk 0:00:57]}  Bf6 {[%clk 0:00:19]} 28. Rad1 {[%clk 0:00:55]}  c3 {[%clk 0:00:18]} 29. Nc2 {[%clk 0:00:46]}  Rxd1 {[%clk 0:00:16]} 30. Rxd1 {[%clk 0:00:47]}  Rd8 {[%clk 0:00:17]} 31. Rxd8+ {[%clk 0:00:40]}  Qxd8 {[%clk 0:00:18]} 32. h3 {[%clk 0:00:41]}  Qd1+ {[%clk 0:00:17]} 33. Kh2 {[%clk 0:00:41]}  Kf8 {[%clk 0:00:14]} 34. Qxh7 {[%clk 0:00:38]} 1-0


[Site "https://www.chess.com"]

[Event "Titled Tuesday Blitz November 07 Late 2023"]
[White "Hakobyan, Aram"]
[Black "Zakaryan, David"]
[WhiteFideId "13306677"]
[BlackFideId "24101923"]
[WhiteElo "3052"]
[BlackElo "2627"]
[Result "1-0"]
[Round "4"]
[TimeControl "180+1"]
[Date "2023.11.07"]
[WhiteClock "0:02:46"]
[BlackClock "0:00:00"]
[Board "25"]

1. d4 {[%clk 0:03:00]}  Nf6 {[%clk 0:02:54]} 2. c4 {[%clk 0:03:00]}  e6 {[%clk 0:02:54]} 3. Nc3 {[%clk 0:03:00]}  Bb4 {[%clk 0:02:55]} 4. e3 {[%clk 0:03:00]}  O-O {[%clk 0:02:54]} 5. a3 {[%clk 0:03:01]}  Bxc3+ {[%clk 0:02:52]} 6. bxc3 {[%clk 0:03:02]}  d6 {[%clk 0:02:39]} 7. Ne2 {[%clk 0:03:03]}  e5 {[%clk 0:02:35]} 8. Ng3 {[%clk 0:03:03]}  Nc6 {[%clk 0:02:30]} 9. Bd3 {[%clk 0:03:03]}  Re8 {[%clk 0:02:14]} 10. O-O {[%clk 0:03:01]}  e4 {[%clk 0:02:09]} 11. Be2 {[%clk 0:03:01]}  Na5 {[%clk 0:01:57]} 12. f3 {[%clk 0:03:02]}  exf3 {[%clk 0:01:32]} 13. gxf3 {[%clk 0:03:00]}  b6 {[%clk 0:01:21]} 14. e4 {[%clk 0:03:00]}  Ba6 {[%clk 0:01:18]} 15. Ra2 {[%clk 0:03:00]}  Nd7 {[%clk 0:00:28]} 16. Bd3 {[%clk 0:03:00]}  Nf8 {[%clk 0:00:21]} 17. Rg2 {[%clk 0:03:01]}  Bxc4 {[%clk 0:00:13]} 18. f4 {[%clk 0:02:58]}  Bxd3 {[%clk 0:00:13]} 19. Qxd3 {[%clk 0:02:59]}  c5 {[%clk 0:00:05]} 20. Nh5 {[%clk 0:02:59]}  g6 {[%clk 0:00:05]} 21. f5 {[%clk 0:02:59]}  cxd4 {[%clk 0:00:04]} 22. Bg5 {[%clk 0:03:00]}  Qc7 {[%clk 0:00:03]} 23. Nf6+ {[%clk 0:03:00]}  Kh8 {[%clk 0:00:04]} 24. Nxe8 {[%clk 0:03:01]}  Rxe8 {[%clk 0:00:03]} 25. fxg6 {[%clk 0:02:59]}  Nxg6 {[%clk 0:00:02]} 26. Bf6+ {[%clk 0:02:59]}  Kg8 {[%clk 0:00:03]} 27. Bxd4 {[%clk 0:03:00]}  Nc6 {[%clk 0:00:03]} 28. Bf6 {[%clk 0:02:59]}  Ne5 {[%clk 0:00:04]} 29. Qh3 {[%clk 0:03:00]}  Qc5+ {[%clk 0:00:02]} 30. Kh1 {[%clk 0:03:00]}  Re6 {[%clk 0:00:01]} 31. Qh6 {[%clk 0:02:58]}  Rxf6 {[%clk 0:00:02]} 32. Rxf6 {[%clk 0:02:59]}  Qxc3 {[%clk 0:00:03]} 33. Rf1 {[%clk 0:02:57]}  Qd3 {[%clk 0:00:03]} 34. Qf4 {[%clk 0:02:55]}  Qb3 {[%clk 0:00:02]} 35. Qf6 {[%clk 0:02:54]}  Qxa3 {[%clk 0:00:00]} 36. Rc2 {[%clk 0:02:46]} 1-0


[Site "https://www.chess.com"]

[Event "Titled Tuesday Blitz November 07 Late 2023"]
[White "GatoRojo150"]
[Black "Drygalov, Andrey"]
[BlackFideId "24171735"]
[WhiteElo "2616"]
[BlackElo "2972"]
[Result "0-1"]
[Round "4"]
[TimeControl "180+1"]
[Date "2023.11.07"]
[WhiteClock "0:00:00"]
[BlackClock "0:00:06"]
[Board "27"]

1. e4 {[%clk 0:03:00]}  c5 {[%clk 0:03:00]} 2. Nf3 {[%clk 0:03:00]}  d6 {[%clk 0:03:01]} 3. Nc3 {[%clk 0:03:00]}  Nf6 {[%clk 0:03:01]} 4. Bc4 {[%clk 0:03:00]}  e6 {[%clk 0:03:01]} 5. d4 {[%clk 0:02:59]}  cxd4 {[%clk 0:03:01]} 6. Nxd4 {[%clk 0:02:56]}  a6 {[%clk 0:03:01]} 7. Bb3 {[%clk 0:02:56]}  Nbd7 {[%clk 0:03:01]} 8. Bg5 {[%clk 0:02:54]}  Nc5 {[%clk 0:03:01]} 9. f4 {[%clk 0:02:53]}  Be7 {[%clk 0:03:01]} 10. Qe2 {[%clk 0:02:52]}  Qc7 {[%clk 0:02:54]} 11. e5 {[%clk 0:02:50]}  dxe5 {[%clk 0:02:53]} 12. fxe5 {[%clk 0:02:51]}  Ng8 {[%clk 0:02:46]} 13. Bf4 {[%clk 0:02:50]}  b5 {[%clk 0:02:41]} 14. O-O-O {[%clk 0:02:46]}  Bb7 {[%clk 0:02:38]} 15. Qg4 {[%clk 0:02:45]}  g6 {[%clk 0:02:30]} 16. Rhf1 {[%clk 0:02:43]}  h5 {[%clk 0:02:25]} 17. Qh3 {[%clk 0:02:42]}  Nxb3+ {[%clk 0:02:25]} 18. axb3 {[%clk 0:02:38]}  b4 {[%clk 0:02:01]} 19. Nxe6 {[%clk 0:02:30]}  Qc8 {[%clk 0:01:46]} 20. Nc7+ {[%clk 0:01:58]}  Qxc7 {[%clk 0:01:41]} 21. e6 {[%clk 0:01:58]}  Qc6 {[%clk 0:01:26]} 22. exf7+ {[%clk 0:01:58]}  Kxf7 {[%clk 0:01:25]} 23. Be5+ {[%clk 0:01:43]}  Ke8 {[%clk 0:01:10]} 24. Bxh8 {[%clk 0:01:18]}  bxc3 {[%clk 0:01:10]} 25. Bxc3 {[%clk 0:01:17]}  Nh6 {[%clk 0:01:10]} 26. Qe3 {[%clk 0:00:32]}  Nf5 {[%clk 0:00:55]} 27. Rxf5 {[%clk 0:00:26]}  gxf5 {[%clk 0:00:56]} 28. Re1 {[%clk 0:00:23]}  Qd6 {[%clk 0:00:23]} 29. Qg5 {[%clk 0:00:23]}  Be4 {[%clk 0:00:23]} 30. Qxh5+ {[%clk 0:00:22]}  Kd7 {[%clk 0:00:16]} 31. Rd1 {[%clk 0:00:17]}  Bd5 {[%clk 0:00:16]} 32. Qxf5+ {[%clk 0:00:16]}  Kc6 {[%clk 0:00:16]} 33. Be5 {[%clk 0:00:14]}  Qe6 {[%clk 0:00:16]} 34. Qf4 {[%clk 0:00:13]}  Rf8 {[%clk 0:00:15]} 35. Qa4+ {[%clk 0:00:13]}  Kb7 {[%clk 0:00:15]} 36. Bd4 {[%clk 0:00:12]}  Qc6 {[%clk 0:00:15]} 37. Qa5 {[%clk 0:00:11]}  Be4 {[%clk 0:00:12]} 38. Bc3 {[%clk 0:00:09]}  Rf5 {[%clk 0:00:09]} 39. Qa4 {[%clk 0:00:06]}  Qxa4 {[%clk 0:00:09]} 40. bxa4 {[%clk 0:00:07]}  Bc6 {[%clk 0:00:09]} 41. Re1 {[%clk 0:00:07]}  Bg5+ {[%clk 0:00:09]} 42. Bd2 {[%clk 0:00:06]}  Bxd2+ {[%clk 0:00:07]} 43. Kxd2 {[%clk 0:00:07]}  Bxg2 {[%clk 0:00:08]} 44. Rg1 {[%clk 0:00:07]}  Rf2+ {[%clk 0:00:06]} 45. Kc3 {[%clk 0:00:07]}  Be4 {[%clk 0:00:06]} 46. Rg7+ {[%clk 0:00:07]}  Kb6 {[%clk 0:00:06]} 47. Re7 {[%clk 0:00:06]}  Rxc2+ {[%clk 0:00:05]} 48. Kb3 {[%clk 0:00:06]}  Re2 {[%clk 0:00:05]} 49. Re6+ {[%clk 0:00:06]}  Kb7 {[%clk 0:00:06]} 50. Re7+ {[%clk 0:00:06]}  Kb6 {[%clk 0:00:02]} 51. Re6+ {[%clk 0:00:07]}  Kb7 {[%clk 0:00:02]} 52. Re7+ {[%clk 0:00:07]}  Kc6 {[%clk 0:00:02]} 53. Re6+ {[%clk 0:00:07]}  Kc5 {[%clk 0:00:02]} 54. Rxa6 {[%clk 0:00:07]}  Bd5+ {[%clk 0:00:03]} 55. Kc3 {[%clk 0:00:07]}  Re3+ {[%clk 0:00:02]} 56. Kd2 {[%clk 0:00:07]}  Rb3 {[%clk 0:00:02]} 57. Kc2 {[%clk 0:00:07]}  Rh3 {[%clk 0:00:03]} 58. Ra5+ {[%clk 0:00:07]}  Kd4 {[%clk 0:00:03]} 59. Rb5 {[%clk 0:00:08]}  Rxh2+ {[%clk 0:00:03]} 60. Kc1 {[%clk 0:00:08]}  Bc4 {[%clk 0:00:03]} 61. Rb8 {[%clk 0:00:07]}  Bd3 {[%clk 0:00:03]} 62. Rd8+ {[%clk 0:00:07]}  Kc4 {[%clk 0:00:04]} 63. Rc8+ {[%clk 0:00:07]}  Kb4 {[%clk 0:00:04]} 64. Rc3 {[%clk 0:00:05]}  Bc4 {[%clk 0:00:04]} 65. Ra3 {[%clk 0:00:05]}  Bb3 {[%clk 0:00:05]} 66. a5 {[%clk 0:00:04]}  Rc2+ {[%clk 0:00:04]} 67. Kd1 {[%clk 0:00:01]}  Rxb2+ {[%clk 0:00:05]} 68. Rxb3+ {[%clk 0:00:01]}  Rxb3 {[%clk 0:00:05]} 69. a6 {[%clk 0:00:02]}  Ra3 {[%clk 0:00:06]} 70. a7 {[%clk 0:00:00]}  Rxa7 {[%clk 0:00:06]} 0-1


[Site "https://www.chess.com"]

[Event "Titled Tuesday Blitz November 07 Late 2023"]
[White "Makhnev, Denis"]
[Black "ArtemDyachuk"]
[WhiteFideId "13707647"]
[WhiteElo "2957"]
[BlackElo "2615"]
[Result "1-0"]
[Round "4"]
[TimeControl "180+1"]
[Date "2023.11.07"]
[WhiteClock "0:01:23"]
[BlackClock "0:00:18"]
[Board "29"]

1. Nf3 {[%clk 0:03:00]}  Nf6 {[%clk 0:02:58]} 2. c4 {[%clk 0:03:00]}  c6 {[%clk 0:02:56]} 3. d4 {[%clk 0:02:55]}  d5 {[%clk 0:02:56]} 4. e3 {[%clk 0:02:56]}  Bf5 {[%clk 0:02:53]} 5. Nc3 {[%clk 0:02:52]}  e6 {[%clk 0:02:47]} 6. Nh4 {[%clk 0:02:52]}  Bg4 {[%clk 0:02:42]} 7. Qb3 {[%clk 0:02:48]}  Qc7 {[%clk 0:02:38]} 8. h3 {[%clk 0:02:48]}  Bh5 {[%clk 0:02:38]} 9. g4 {[%clk 0:02:47]}  Bg6 {[%clk 0:02:38]} 10. cxd5 {[%clk 0:02:47]}  exd5 {[%clk 0:02:37]} 11. Nxg6 {[%clk 0:02:36]}  hxg6 {[%clk 0:02:36]} 12. Bg2 {[%clk 0:02:37]}  Bd6 {[%clk 0:02:35]} 13. Bd2 {[%clk 0:02:37]}  Nbd7 {[%clk 0:02:32]} 14. O-O-O {[%clk 0:02:36]}  a5 {[%clk 0:02:01]} 15. Kb1 {[%clk 0:02:34]}  b5 {[%clk 0:01:58]} 16. g5 {[%clk 0:02:32]}  a4 {[%clk 0:01:36]} 17. Qc2 {[%clk 0:02:32]}  Ng8 {[%clk 0:01:36]} 18. e4 {[%clk 0:02:17]}  dxe4 {[%clk 0:01:17]} 19. Nxb5 {[%clk 0:02:13]}  Qb8 {[%clk 0:01:09]} 20. Qxc6 {[%clk 0:02:08]}  Be7 {[%clk 0:00:38]} 21. Nc7+ {[%clk 0:02:03]}  Kd8 {[%clk 0:00:35]} 22. Nxa8 {[%clk 0:02:02]}  a3 {[%clk 0:00:35]} 23. Ba5+ {[%clk 0:01:58]}  Ke8 {[%clk 0:00:35]} 24. Nc7+ {[%clk 0:01:57]}  Kf8 {[%clk 0:00:36]} 25. b3 {[%clk 0:01:57]}  e3 {[%clk 0:00:20]} 26. fxe3 {[%clk 0:01:53]}  Rh5 {[%clk 0:00:19]} 27. h4 {[%clk 0:01:52]}  Ngf6 {[%clk 0:00:14]} 28. Bf3 {[%clk 0:01:39]}  Rh7 {[%clk 0:00:09]} 29. gxf6 {[%clk 0:01:39]}  Nxf6 {[%clk 0:00:10]} 30. Nd5 {[%clk 0:01:36]}  Ne8 {[%clk 0:00:07]} 31. Nxe7 {[%clk 0:01:36]}  Kxe7 {[%clk 0:00:07]} 32. Qc5+ {[%clk 0:01:36]}  Nd6 {[%clk 0:00:06]} 33. Bc7 {[%clk 0:01:35]}  Qc8 {[%clk 0:00:02]} 34. Bxd6+ {[%clk 0:01:35]}  Kd8 {[%clk 0:00:01]} 35. Be7+ {[%clk 0:01:33]}  Kd7 {[%clk 0:00:01]} 36. Qd6+ {[%clk 0:01:34]}  Ke8 {[%clk 0:00:02]} 37. Bc6+ {[%clk 0:01:34]}  Qxc6 {[%clk 0:00:02]} 38. Qxc6+ {[%clk 0:01:32]}  Kxe7 {[%clk 0:00:03]} 39. Qc5+ {[%clk 0:01:32]}  Ke6 {[%clk 0:00:03]} 40. Qxa3 {[%clk 0:01:33]}  f5 {[%clk 0:00:03]} 41. Qa6+ {[%clk 0:01:33]}  Kd5 {[%clk 0:00:03]} 42. Qxg6 {[%clk 0:01:32]}  Rh6 {[%clk 0:00:02]} 43. Qxf5+ {[%clk 0:01:32]}  Kd6 {[%clk 0:00:02]} 44. Qe5+ {[%clk 0:01:33]}  Kd7 {[%clk 0:00:03]} 45. Qxg7+ {[%clk 0:01:34]}  Kd6 {[%clk 0:00:02]} 46. Qxh6+ {[%clk 0:01:34]}  Kd5 {[%clk 0:00:03]} 47. Qf4 {[%clk 0:01:35]}  Ke6 {[%clk 0:00:02]} 48. Qe5+ {[%clk 0:01:35]}  Kd7 {[%clk 0:00:03]} 49. e4 {[%clk 0:01:35]}  Kc6 {[%clk 0:00:03]} 50. h5 {[%clk 0:01:36]}  Kd7 {[%clk 0:00:03]} 51. h6 {[%clk 0:01:37]}  Kc6 {[%clk 0:00:04]} 52. b4 {[%clk 0:01:36]}  Kd7 {[%clk 0:00:05]} 53. a4 {[%clk 0:01:37]}  Kc6 {[%clk 0:00:06]} 54. Kc2 {[%clk 0:01:38]}  Kd7 {[%clk 0:00:07]} 55. Ra1 {[%clk 0:01:38]}  Kc6 {[%clk 0:00:08]} 56. Kd1 {[%clk 0:01:39]}  Kd7 {[%clk 0:00:09]} 57. Ke1 {[%clk 0:01:40]}  Kc6 {[%clk 0:00:10]} 58. Qf4 {[%clk 0:01:41]}  Kd7 {[%clk 0:00:11]} 59. Qd2 {[%clk 0:01:42]}  Kc6 {[%clk 0:00:12]} 60. Qd1 {[%clk 0:01:43]}  Kd7 {[%clk 0:00:12]} 61. a5 {[%clk 0:01:44]}  Kc6 {[%clk 0:00:13]} 62. a6 {[%clk 0:01:45]}  Kd7 {[%clk 0:00:14]} 63. a7 {[%clk 0:01:46]}  Kc6 {[%clk 0:00:15]} 64. d5+ {[%clk 0:01:46]}  Kd7 {[%clk 0:00:16]} 65. b5 {[%clk 0:01:46]}  Kd6 {[%clk 0:00:16]} 66. Qd4 {[%clk 0:01:46]}  Kd7 {[%clk 0:00:17]} 67. b6 {[%clk 0:01:47]}  Kd6 {[%clk 0:00:18]} 68. e5+ {[%clk 0:01:48]}  Kd7 {[%clk 0:00:19]} 69. Qc5 {[%clk 0:01:47]}  Kd8 {[%clk 0:00:19]} 70. Qc7+ {[%clk 0:01:48]}  Ke8 {[%clk 0:00:19]} 71. d6 {[%clk 0:01:48]}  Kf8 {[%clk 0:00:19]} 72. e6 {[%clk 0:01:49]}  Ke8 {[%clk 0:00:19]} 73. b7 {[%clk 0:01:50]}  Kf8 {[%clk 0:00:19]} 74. h7 {[%clk 0:01:50]}  Ke8 {[%clk 0:00:19]} 75. Kd2 {[%clk 0:01:40]}  Kf8 {[%clk 0:00:19]} 76. Rad1 {[%clk 0:01:40]}  Ke8 {[%clk 0:00:18]} 77. Kc1 {[%clk 0:01:41]}  Kf8 {[%clk 0:00:18]} 78. h8=Q# {[%clk 0:01:23]} 1-0


[Site "https://www.chess.com"]

[Event "Titled Tuesday Blitz November 07 Late 2023"]
[White "Kokoszczynski, Jan"]
[Black "Yeletsky, Ivan"]
[WhiteFideId "1174460"]
[BlackFideId "24180327"]
[WhiteElo "2607"]
[BlackElo "2934"]
[Result "0-1"]
[Round "4"]
[TimeControl "180+1"]
[Date "2023.11.07"]
[WhiteClock "0:00:01"]
[BlackClock "0:00:04"]
[Board "31"]

1. Nf3 {[%clk 0:03:00]}  b6 {[%clk 0:02:59]} 2. g3 {[%clk 0:03:00]}  Bb7 {[%clk 0:02:59]} 3. Bg2 {[%clk 0:03:01]}  c5 {[%clk 0:02:59]} 4. O-O {[%clk 0:03:01]}  g6 {[%clk 0:03:00]} 5. c4 {[%clk 0:03:00]}  Bg7 {[%clk 0:03:00]} 6. Nc3 {[%clk 0:03:01]}  Nf6 {[%clk 0:02:58]} 7. d3 {[%clk 0:02:54]}  d5 {[%clk 0:02:52]} 8. cxd5 {[%clk 0:02:54]}  Nxd5 {[%clk 0:02:53]} 9. Bd2 {[%clk 0:02:53]}  O-O {[%clk 0:02:51]} 10. Nxd5 {[%clk 0:02:46]}  Qxd5 {[%clk 0:02:50]} 11. Bc3 {[%clk 0:02:47]}  Bxc3 {[%clk 0:02:15]} 12. bxc3 {[%clk 0:02:48]}  Nc6 {[%clk 0:02:14]} 13. Qa4 {[%clk 0:02:37]}  Qd6 {[%clk 0:02:03]} 14. Qh4 {[%clk 0:02:27]}  Kg7 {[%clk 0:01:58]} 15. Ng5 {[%clk 0:02:18]}  h6 {[%clk 0:01:58]} 16. Ne4 {[%clk 0:02:18]}  Qd7 {[%clk 0:01:56]} 17. f4 {[%clk 0:02:14]}  f5 {[%clk 0:01:48]} 18. Nd2 {[%clk 0:02:14]}  e5 {[%clk 0:01:48]} 19. Nc4 {[%clk 0:02:05]}  Rae8 {[%clk 0:01:29]} 20. Rae1 {[%clk 0:01:37]}  exf4 {[%clk 0:01:15]} 21. Qxf4 {[%clk 0:01:36]}  b5 {[%clk 0:01:11]} 22. Nd2 {[%clk 0:01:25]}  Ne5 {[%clk 0:00:55]} 23. h3 {[%clk 0:01:07]}  Bxg2 {[%clk 0:00:52]} 24. Kxg2 {[%clk 0:01:07]}  Qd5+ {[%clk 0:00:46]} 25. Kh2 {[%clk 0:00:53]}  Qxa2 {[%clk 0:00:42]} 26. Ra1 {[%clk 0:00:52]}  Qf7 {[%clk 0:00:42]} 27. e4 {[%clk 0:00:50]}  Nxd3 {[%clk 0:00:39]} 28. Qe3 {[%clk 0:00:38]}  Qd7 {[%clk 0:00:33]} 29. Ra6 {[%clk 0:00:35]}  b4 {[%clk 0:00:20]} 30. cxb4 {[%clk 0:00:20]}  Nxb4 {[%clk 0:00:20]} 31. Ra5 {[%clk 0:00:17]}  Kh7 {[%clk 0:00:08]} 32. Rxc5 {[%clk 0:00:12]}  Re7 {[%clk 0:00:08]} 33. Rfc1 {[%clk 0:00:11]}  Qd3 {[%clk 0:00:06]} 34. Qxd3 {[%clk 0:00:10]}  Nxd3 {[%clk 0:00:07]} 35. Rc7 {[%clk 0:00:11]}  Rff7 {[%clk 0:00:06]} 36. Rxe7 {[%clk 0:00:11]}  Rxe7 {[%clk 0:00:07]} 37. Rc4 {[%clk 0:00:11]}  a5 {[%clk 0:00:05]} 38. Ra4 {[%clk 0:00:09]}  h5 {[%clk 0:00:04]} 39. h4 {[%clk 0:00:05]}  Re5 {[%clk 0:00:04]} 40. Kh3 {[%clk 0:00:05]}  Nf2+ {[%clk 0:00:04]} 41. Kg2 {[%clk 0:00:05]}  Nxe4 {[%clk 0:00:05]} 42. Nf3 {[%clk 0:00:06]}  Rb5 {[%clk 0:00:04]} 43. Rc4 {[%clk 0:00:05]}  Rb2+ {[%clk 0:00:04]} 44. Kh3 {[%clk 0:00:05]}  Nf2+ {[%clk 0:00:03]} 45. Kg2 {[%clk 0:00:05]}  Ng4+ {[%clk 0:00:04]} 46. Kg1 {[%clk 0:00:01]}  Rb1+ {[%clk 0:00:04]} 0-1


[Site "https://www.chess.com"]

[Event "Titled Tuesday Blitz November 07 Late 2023"]
[White "Kamsky, Gata"]
[Black "Pinheiro, Iung Alicio de O."]
[WhiteFideId "2000024"]
[BlackFideId "2104350"]
[WhiteElo "2854"]
[BlackElo "2595"]
[Result "1-0"]
[Round "4"]
[TimeControl "180+1"]
[Date "2023.11.07"]
[WhiteClock "0:00:11"]
[BlackClock "0:00:00"]
[Board "35"]

1. d4 {[%clk 0:03:00]}  Nf6 {[%clk 0:02:57]} 2. Bf4 {[%clk 0:02:59]}  e6 {[%clk 0:02:54]} 3. e3 {[%clk 0:02:59]}  c5 {[%clk 0:02:52]} 4. c3 {[%clk 0:02:58]}  b6 {[%clk 0:02:46]} 5. Nf3 {[%clk 0:02:53]}  Bb7 {[%clk 0:02:45]} 6. a4 {[%clk 0:02:52]}  a6 {[%clk 0:02:45]} 7. Nbd2 {[%clk 0:02:49]}  Be7 {[%clk 0:02:39]} 8. h3 {[%clk 0:02:50]}  O-O {[%clk 0:02:38]} 9. Bd3 {[%clk 0:02:49]}  cxd4 {[%clk 0:02:37]} 10. exd4 {[%clk 0:02:48]}  d6 {[%clk 0:02:38]} 11. O-O {[%clk 0:02:48]}  Nbd7 {[%clk 0:02:38]} 12. Re1 {[%clk 0:02:47]}  Re8 {[%clk 0:02:38]} 13. Bh2 {[%clk 0:02:47]}  Qc7 {[%clk 0:02:38]} 14. c4 {[%clk 0:02:43]}  Bf8 {[%clk 0:02:25]} 15. a5 {[%clk 0:02:42]}  bxa5 {[%clk 0:02:17]} 16. Qa4 {[%clk 0:02:32]}  e5 {[%clk 0:02:16]} 17. Bf5 {[%clk 0:02:02]}  exd4 {[%clk 0:01:59]} 18. Rxe8 {[%clk 0:01:39]}  Rxe8 {[%clk 0:01:56]} 19. Qxa5 {[%clk 0:01:35]}  Qxa5 {[%clk 0:01:10]} 20. Rxa5 {[%clk 0:01:34]}  Nc5 {[%clk 0:01:11]} 21. Bg3 {[%clk 0:01:21]}  g6 {[%clk 0:00:59]} 22. Bb1 {[%clk 0:01:17]}  Re2 {[%clk 0:00:47]} 23. b4 {[%clk 0:01:15]}  Bxf3 {[%clk 0:00:44]} 24. Nxf3 {[%clk 0:01:14]}  Rb2 {[%clk 0:00:45]} 25. bxc5 {[%clk 0:00:29]}  Rxb1+ {[%clk 0:00:43]} 26. Kh2 {[%clk 0:00:29]}  dxc5 {[%clk 0:00:41]} 27. Rxa6 {[%clk 0:00:30]}  Ne4 {[%clk 0:00:40]} 28. Ra8 {[%clk 0:00:27]}  Nxg3 {[%clk 0:00:39]} 29. Kxg3 {[%clk 0:00:26]}  Kg7 {[%clk 0:00:34]} 30. Ra7 {[%clk 0:00:25]}  Bd6+ {[%clk 0:00:32]} 31. Kh4 {[%clk 0:00:22]}  Rb2 {[%clk 0:00:31]} 32. Rd7 {[%clk 0:00:20]}  Bf4 {[%clk 0:00:27]} 33. Kg4 {[%clk 0:00:19]}  Bb8 {[%clk 0:00:23]} 34. Rd8 {[%clk 0:00:18]}  h5+ {[%clk 0:00:15]} 35. Kh4 {[%clk 0:00:18]}  f6 {[%clk 0:00:15]} 36. g4 {[%clk 0:00:14]}  Rxf2 {[%clk 0:00:12]} 37. Rxb8 {[%clk 0:00:13]}  Rxf3 {[%clk 0:00:12]} 38. gxh5 {[%clk 0:00:13]}  gxh5 {[%clk 0:00:09]} 39. Rd8 {[%clk 0:00:11]}  Rf5 {[%clk 0:00:08]} 40. Kg3 {[%clk 0:00:11]}  Kg6 {[%clk 0:00:08]} 41. h4 {[%clk 0:00:11]}  Re5 {[%clk 0:00:08]} 42. Kf4 {[%clk 0:00:11]}  Re3 {[%clk 0:00:07]} 43. Rd5 {[%clk 0:00:11]}  Rc3 {[%clk 0:00:07]} 44. Rxc5 {[%clk 0:00:11]}  Rxc4 {[%clk 0:00:00]} 45. Rxc4 {[%clk 0:00:11]} 1-0


[Site "https://www.chess.com"]

[Event "Titled Tuesday Blitz November 07 Late 2023"]
[White "Sargsyan, Anna M."]
[Black "Mikaelyan, Arman"]
[WhiteFideId "13308130"]
[BlackFideId "13304852"]
[WhiteElo "2594"]
[BlackElo "2853"]
[Result "0-1"]
[Round "4"]
[TimeControl "180+1"]
[Date "2023.11.07"]
[WhiteClock "0:00:00"]
[BlackClock "0:00:14"]
[Board "36"]

1. e4 {[%clk 0:02:55]}  e5 {[%clk 0:02:54]} 2. Nf3 {[%clk 0:02:55]}  Nc6 {[%clk 0:02:54]} 3. Bc4 {[%clk 0:02:56]}  Nf6 {[%clk 0:02:54]} 4. d3 {[%clk 0:02:56]}  Bc5 {[%clk 0:02:54]} 5. c3 {[%clk 0:02:57]}  d6 {[%clk 0:02:54]} 6. O-O {[%clk 0:02:56]}  a6 {[%clk 0:02:54]} 7. a4 {[%clk 0:02:57]}  O-O {[%clk 0:02:53]} 8. h3 {[%clk 0:02:56]}  Ba7 {[%clk 0:02:50]} 9. Re1 {[%clk 0:02:56]}  Ne7 {[%clk 0:02:50]} 10. d4 {[%clk 0:02:55]}  Ng6 {[%clk 0:02:49]} 11. Nbd2 {[%clk 0:02:51]}  exd4 {[%clk 0:02:36]} 12. cxd4 {[%clk 0:02:50]}  d5 {[%clk 0:02:37]} 13. exd5 {[%clk 0:02:51]}  Nxd5 {[%clk 0:02:37]} 14. Ne4 {[%clk 0:02:52]}  c6 {[%clk 0:02:29]} 15. Bg5 {[%clk 0:02:52]}  Qa5 {[%clk 0:02:21]} 16. Rc1 {[%clk 0:02:20]}  Be6 {[%clk 0:02:17]} 17. Bd2 {[%clk 0:02:04]}  Qd8 {[%clk 0:02:17]} 18. Bg5 {[%clk 0:02:04]}  Qd7 {[%clk 0:02:12]} 19. Nc5 {[%clk 0:02:02]}  Bxc5 {[%clk 0:02:12]} 20. dxc5 {[%clk 0:02:03]}  h6 {[%clk 0:02:10]} 21. Be3 {[%clk 0:01:58]}  Rad8 {[%clk 0:02:07]} 22. Bd4 {[%clk 0:01:32]}  Ndf4 {[%clk 0:02:07]} 23. Bxe6 {[%clk 0:01:31]}  Nxe6 {[%clk 0:02:08]} 24. Bc3 {[%clk 0:01:20]}  Qc7 {[%clk 0:01:58]} 25. Qc2 {[%clk 0:01:15]}  Rfe8 {[%clk 0:01:54]} 26. b4 {[%clk 0:01:14]}  Nef4 {[%clk 0:01:50]} 27. a5 {[%clk 0:01:08]}  Qd7 {[%clk 0:01:44]} 28. Kh2 {[%clk 0:01:05]}  Qd5 {[%clk 0:01:31]} 29. Rcd1 {[%clk 0:00:50]}  Qc4 {[%clk 0:01:25]} 30. Rxd8 {[%clk 0:00:50]}  Rxd8 {[%clk 0:01:25]} 31. Re4 {[%clk 0:00:50]}  Qf1 {[%clk 0:01:20]} 32. Ne1 {[%clk 0:00:46]}  Rd5 {[%clk 0:00:57]} 33. h4 {[%clk 0:00:18]}  Rh5 {[%clk 0:00:51]} 34. Kg3 {[%clk 0:00:19]}  Rxh4 {[%clk 0:00:36]} 35. Kf3 {[%clk 0:00:15]}  Rh3+ {[%clk 0:00:32]} 36. Kg4 {[%clk 0:00:13]}  Rh4+ {[%clk 0:00:20]} 37. Kf3 {[%clk 0:00:13]}  Kh7 {[%clk 0:00:19]} 38. Re8 {[%clk 0:00:06]}  Nd5 {[%clk 0:00:15]} 39. Qd2 {[%clk 0:00:01]}  Rf4+ {[%clk 0:00:15]} 40. Kg3 {[%clk 0:00:01]}  Qh1 {[%clk 0:00:16]} 41. Nf3 {[%clk 0:00:00]}  Qh5 {[%clk 0:00:14]} 0-1


[Site "https://www.chess.com"]